[Event "Oceania Zonal Open 2023"]
[Site "Melbourne"]
[Date "2023.01.24"]
[Round "2.8"]
[White "Rathinalingam, Nethaji"]
[Black "Nemeth, John"]
[Result "0-1"]
[ECO "B26"]
[WhiteElo "1782"]
[BlackElo "2157"]
[Annotator "TA"]
[PlyCount "58"]
[EventDate "2023.01.09"]
[EventType "swiss"]
[EventCountry "AUS"]
[SourceTitle "playchess.com"]
[Source "ChessBase"]
[SourceQuality "1"]
[TimeControl "5400+30"]

{[%evp 19,58,12,63,-19,8,0,77,50,56,10,76,-15,-18,-92,0,0,0,0,0,0,344,345,256,368,749,20,20,20,26,45,143,-92,-53,-151,160,156,861,-29991,-29992,-29992,-29993]} 1. e4 {[%emt 0:03:43]} c5 {[%emt 0:00:13]} 2. Nc3 {[%emt 0:00:14]} Nc6 {[%emt 0:00:12]} 3. g3 {[%emt 0:00:08]} g6 {[%emt 0:00:22]} 4. Bg2 {[%emt 0:00:09]} Bg7 {[%emt 0:00:13]} 5. d3 {[%emt 0:00:09]} d6 {[%emt 0:00:25]} 6. Be3 {[%emt 0:00:46]} e6 {[%emt 0:00:16]} 7. Qd2 {[%emt 0:00:21]} Nge7 {[%emt 0:00:35]} 8. Bh6 {[%emt 0:00:15]} O-O {[%emt 0:00:28]} 9. Bxg7 {[%emt 0:00:16]} Kxg7 {[%emt 0:00:09]} 10. h4 {[%emt 0:04:48]} f6 {[%emt 0:00:44]} (10... h5 $11) 11. g4 {[%emt 0:03:15] B26: Closed Sicilian: 3 g3, lines with early Be3.} (11. h5 $1 $14) 11... Nd4 {[%emt 0:08:23] [#]} (11... e5 $5 {[%cal Rc8g4]}) 12. f4 $146 {[%emt 0:03:05]} ({Predecessor:} 12. Nce2 Nec6 13. c3 Nxe2 14. Nxe2 e5 15. g5 Be6 16. f4 Qe7 17. f5 Bd7 18. Ng3 Rf7 {1-0 Lebrun,B (2207)-Lucas,J (2214) FRA-chT2S 0203 2002 (5.6)}) 12... Nec6 {[%emt 0:14:19]} (12... e5 $1 $11) 13. Nge2 {[%emt 0:07:43] White is better.} Rb8 {[%emt 0:12:02]} 14. g5 {[%emt 0:17:16]} (14. Nxd4 $14 cxd4 15. Ne2) 14... b5 {[%emt 0:11:32]} (14... fxg5 $11 15. hxg5 e5) 15. Nxd4 {[%emt 0:16:26]} (15. gxf6+ $1 $16 Qxf6 16. e5 dxe5 17. Bxc6 Nxc6 18. Ne4) 15... Nxd4 $11 {[%emt 0:00:40]} 16. O-O-O {[%emt 0:04:55]} (16. O-O $11 {remains equal.}) 16... b4 {[%emt 0:05:53]} (16... fxg5 $1 $17 17. fxg5 (17. hxg5 $2 b4 $19) 17... b4) 17. Ne2 {[%emt 0:00:32]} Qa5 {[%emt 0:01:41]} 18. Kb1 {[%emt 0:00:08]} Rb6 {[%emt 0:00:27]} 19. Nc1 {[%emt 0:06:24] And now h5 would win.} Bd7 $2 {[%emt 0:11:34][%mdl 8192]} (19... Ra6 $11) 20. h5 $18 {[%emt 0:06:56]} Ba4 {[%emt 0:00:35]} 21. b3 {[%emt 0:00:47]} (21. gxf6+ $142 Rxf6 22. b3) 21... Nb5 $2 {[%emt 0:00:34]} (21... Be8 22. hxg6 Bxg6) 22. Ne2 $2 {[%emt 0:06:26]} (22. bxa4 Nc3+ 23. Ka1 Qxa4 24. hxg6 Ra6 25. Rxh7+ Kg8 $11) (22. Ka1 $18) 22... Nc3+ $11 {[%emt 0:01:12]} 23. Nxc3 {[%emt 0:03:18]} bxc3 {[%emt 0:00:01]} 24. Qc1 $36 {[%emt 0:00:24][%mdl 2048] White is more active.} (24. gxf6+ $5 Rxf6 25. Qc1 $11) 24... fxg5 {[%emt 0:03:26]} ({Better is} 24... Ra6 $14 25. gxf6+ (25. bxa4 Qxa4) 25... Kxf6) 25. f5 $2 {[%emt 0:01:04]} (25. fxg5 $2 Bxb3 26. cxb3 Rf2 27. h6+ Kh8 $19) (25. hxg6 $16 h6 26. e5 (26. fxg5 $2 Bxb3 27. gxh6+ Kxg6 $19)) 25... Ra6 $1 $17 {[%emt 0:02:21][%cal Oa4b3] ( -> ...Bxb3!)} 26. a3 {[%emt 0:05:21] [#]} (26. bxa4 Qxa4 27. f6+ Kh8 28. a3 Rb8+ 29. Ka2 Qxa3+ 30. Qxa3 Rb2+ {[%mdl 64] Deflection, Double Attack} 31. Ka1 Rxa3#) (26. Qa3 $1 $15) 26... Rb8 $2 {[%emt 0:00:37] [#]} (26... gxf5 $6 27. exf5 (27. bxa4 Qxa4 28. h6+ Kh8 29. e5 Rb8+) (27. Qxg5+ $2 Kf7 $19) 27... h6 28. fxe6 $11) (26... Rb6 $1 $17 {[%cal Oa4b3] ...Bxb3! is the strong threat.} 27. hxg6 (27. fxe6 $2 Bxb3 28. Ka1 Bxe6 $19) 27... Bxb3 28. Rxh7+ (28. cxb3 $2 Rxb3+ 29. Ka2 Rfb8 $19) 28... Kf6) 27. f6+ $1 $16 {[%emt 0:00:50]} (27. fxe6 Bxb3 28. Rdf1 Bxe6+) 27... Kf8 $2 {[%emt 0:00:42]} (27... Kxf6 $16 28. Rdf1+ Kg7 29. Qxg5 Bxb3 30. Qe7+ (30. cxb3 Qxa3 31. Qe7+ Kg8 $11) 30... Kg8 31. Qf7+ (31. cxb3 {leads to mate.} Rxb3+ 32. Kc2 Rb2+ {[%mdl 64] Skewer} 33. Kd1 c2+ 34. Ke2 c1=Q+ 35. Kf3 Qe3+ {[%mdl 64] Decoy} 36. Kxe3 Qd2+ 37. Kf3 Qxd3+ 38. Kf4 Qd2+ 39. Kg3 Qxg2+ 40. Kh4 Qxe4+ 41. Kg5 Rg2+ 42. Kh6 Qe3+) 31... Kh8 32. Qf6+ (32. cxb3 Rxb3+ 33. Kc2 Rb2+ {[%mdl 64] Skewer} 34. Kd1 c2+ 35. Kc1 Rb1+ 36. Kxc2 Rb2+ {[%mdl 64] Skewer, Decoy} 37. Kxb2 Qd2+ 38. Kb3 Qxd3+ 39. Kb2 Rb6+ 40. Ka2 Qe2+ 41. Ka1 Qb2#) (32. hxg6 Bxc2+ {[%mdl 64] Decoy} 33. Kxc2 Qa4+ 34. Kxc3 Qd4+ 35. Kc2 Rb2+ {[%mdl 64] Skewer, Deflection} 36. Kd1 Qxd3+ 37. Ke1 Qe2#) 32... Kg8 33. hxg6 (33. cxb3 Qxa3 34. Qxe6+ Kh8 $11) (33. Qf7+ Kh8 $18) 33... Bxc2+ {[%mdl 64] Decoy} 34. Kxc2 Qa4+ 35. Kxc3 Qd4+ 36. Qxd4 Rxa3+ 37. Kd2 cxd4) 28. Ka2 $4 {[%emt 0:01:21][%mdl 8192] [#]} (28. Qxg5 {is a self mate.} Bxb3 29. Qh6+ Ke8 30. f7+ Kd7 31. Qc1 Bd5+) (28. hxg6 $18 Bxb3 29. cxb3) 28... Bxb3+ $1 {[%emt 0:00:58][%mdl 512]} 29. cxb3 {[%emt 0:00:26]} Qb4 {[%emt 0:00:04] An exciting game.   Weighted Error Value: White=0.80/Black=0.67} 0-1

[Event "Oceania Zonal Open 2023"]
[Site "Melbourne"]
[Date "2023.01.24"]
[Round "2.9"]
[White "Winkelman, Albert"]
[Black "Do, Aaron"]
[Result "1-0"]
[ECO "D30"]
[WhiteElo "2272"]
[BlackElo "1803"]
[Annotator "TA"]
[PlyCount "45"]
[EventDate "2023.01.09"]
[EventType "swiss"]
[EventCountry "AUS"]
[SourceTitle "playchess.com"]
[Source "ChessBase"]
[SourceQuality "1"]
[TimeControl "5400+30"]

{[%evp 9,45,27,29,18,29,23,28,22,42,26,47,39,79,79,146,121,136,135,139,125,132,131,136,102,146,138,194,191,194,156,405,405,815,819,2749,1244,2639,2428]} 1. d4 {[%emt 0:00:07]} d5 {[%emt 0:00:06]} 2. c4 {[%emt 0:00:06]} c6 {[%emt 0:00:15]} 3. Nf3 {[%emt 0:00:06]} Nf6 {[%emt 0:00:34]} 4. e3 {[%emt 0:00:09]} e6 {[%emt 0:00:19]} 5. b3 {[%emt 0:00:50]} Nbd7 {[%emt 0:01:40]} 6. Bb2 {[%emt 0:00:16] D30: Queen's Gambit Declined: Systems without Nc3.} Bb4+ {[%emt 0:01:43]} 7. Nbd2 {[%emt 0:00:21]} O-O {[%emt 0:03:49]} 8. Bd3 {[%emt 0:00:28] White has an edge.} Re8 {[%emt 0:04:54] [#]} 9. Qe2 $146 {[%emt 0:00:50]} ({Predecessor:} 9. O-O Bd6 10. Ne5 Nf8 11. f4 N6d7 12. Qh5 Qe7 13. e4 Nf6 14. Qe2 Nxe4 15. Nxe4 dxe4 16. Qxe4 {½-½ Malka,S (2265)-Lopez Rayo,I (1887) Cali Valle Colombia op-A 2022 (7)}) 9... Bd6 {[%emt 0:04:02]} 10. Ne5 $1 {[%emt 0:00:08]} Bc7 {[%emt 0:02:17]} 11. O-O {[%emt 0:01:30] White has more active pieces. The black rooks are badly placed.} dxc4 {[%emt 0:03:50]} (11... Nxe5 $142 12. dxe5 Nd7) 12. Ndxc4 {[%emt 0:03:58]} Nxe5 {[%emt 0:12:16]} 13. dxe5 {[%emt 0:00:39]} ({Don't take} 13. Nxe5 a5 $16) 13... Nd5 {[%emt 0:02:48]} 14. Qh5 {[%emt 0:00:48]} h6 {[%emt 0:01:27]} 15. Rad1 {[%emt 0:03:38]} Qg5 {[%emt 0:06:48] Repels f4} 16. Qh3 {[%emt 0:00:28]} b5 {[%emt 0:05:15]} 17. Nd2 {[%emt 0:01:26]} f5 {[%emt 0:10:04] Against Ne4} (17... Bxe5 $2 18. Nf3 Bxb2 19. Nxg5 hxg5 20. Qh7+ Kf8 21. Qh8+ Ke7 22. Qh5 $18) (17... h5 $16 18. Ne4 Qh6) 18. exf6 $18 {[%emt 0:05:50]} Nxf6 {[%emt 0:00:09]} 19. Qf3 {[%emt 0:04:03]} Rf8 $2 {[%emt 0:13:58] [#]} (19... Bb7 $16 {was necessary.} 20. Ne4 Nxe4) 20. Ne4 {[%emt 0:02:25]} ({But not} 20. Qxc6 Qd5 21. Qxc7 Qxd3 $18) 20... Nxe4 {[%emt 0:08:43]} (20... Qh4 $142 21. g3 Nxe4) 21. Qxe4 {[%emt 0:00:08] White is clearly winning.} Rb8 {[%emt 0:05:34]} 22. Qh7+ {[%emt 0:01:20]} Kf7 {[%emt 0:00:22]} 23. f4 {[%emt 0:00:07] Black did not feel at home in the position after the opening.   Weighted Error Value: White=0.10 (very precise) /Black=0.46} 1-0

[Event "Oceania Zonal Open 2023"]
[Site "Melbourne"]
[Date "2023.01.24"]
[Round "2.9"]
[White "Annapureddy, Rheyansh Reddy"]
[Black "Fu, Yihe"]
[Result "0-1"]
[ECO "D00"]
[WhiteElo "1778"]
[BlackElo "2149"]
[Annotator "TA"]
[PlyCount "132"]
[EventDate "2023.01.09"]
[EventType "swiss"]
[EventCountry "AUS"]
[SourceTitle "playchess.com"]
[Source "ChessBase"]
[SourceQuality "1"]
[TimeControl "5400+30"]

{[%evp 9,130,-16,0,0,0,6,10,2,0,0,0,0,0,0,0,-20,-8,-11,-9,-28,-10,-24,-24,-30,0,0,0,0,0,0,0,-18,0,-14,-11,-32,-28,-81,-69,-73,-72,-65,-93,-1129,-1138,-1131,-1123,-1580,-1572,-1334,-1326,-1247,-1122,-29994,-29985,-29981,-939,-1433,-1414,-1306,-1644,-1367,-1564,-6936,-6760,-2245,-1316,-1283,-1271,-1170,-1158,-2402,-2168,-29958,-29962,-12804,-6395,-29961,-29955,-2849,-1618,-29985,-29983,-29983,-29984,-29984,-29985,-29985,-29985,-29988,-29987,-29987,-29987,-29992,-29991,-29991,-29990,-29990,-29988,-29989,-29988,-29990,-29991,-29991,-29990,-29992,-29990,-29990,-29989,-29990,-29991,-29992,-29993,-29993,-29994,-29995,-29995,-29996,-29997,-29997,-29998,-29998,-29999]} 1. d4 {[%emt 0:00:13]} Nf6 {[%emt 0:00:09]} 2. Nc3 {[%emt 0:00:12]} d5 {[%emt 0:00:42]} 3. Bf4 {[%emt 0:00:08]} e6 {[%emt 0:00:21]} 4. Nb5 {[%emt 0:00:05]} Na6 {[%emt 0:00:50]} 5. e3 {[%emt 0:00:22]} c6 {[%emt 0:01:27]} 6. Nc3 {[%emt 0:00:11] D00: 1 d4 d5: Unusual lines.} Bb4 {[%emt 0:01:15]} 7. Bxa6 {[%emt 0:05:47]} bxa6 {[%emt 0:00:51]} 8. Nge2 {[%emt 0:00:08] The position is equal.} Nh5 {[%emt 0:03:53] [#]} 9. a3 $146 {[%emt 0:03:59]} ({Predecessor:} 9. Be5 f6 10. Ng3 Nxg3 11. Bxg3 a5 12. O-O Ba6 13. Re1 O-O 14. a3 Bxc3 15. bxc3 {1-0 Bortnyk,O (2605)-Klimkowski,J (2322) Titled Tuesday intern op 13th July blitz 2021 (3)}) 9... Nxf4 {[%emt 0:00:19]} 10. exf4 {[%emt 0:03:46]} Bd6 {[%emt 0:00:42]} 11. Na4 {[%emt 0:02:14]} a5 {[%emt 0:01:57]} 12. Qd3 {[%emt 0:01:43]} Rb8 {[%emt 0:01:21]} 13. O-O {[%emt 0:00:36]} O-O {[%emt 0:00:23]} 14. c3 {[%emt 0:02:33]} Qc7 {[%emt 0:02:14]} 15. g3 {[%emt 0:01:49]} f6 {[%emt 0:00:34]} 16. b4 {[%emt 0:05:34]} e5 {[%emt 0:00:24]} 17. dxe5 {[%emt 0:00:42]} fxe5 {[%emt 0:00:10]} 18. fxe5 {[%emt 0:00:09]} Bxe5 {[%emt 0:00:09]} 19. f4 {[%emt 0:00:53]} Bf5 {[%emt 0:00:59] This pair of bishops is nice.} 20. Qe3 {[%emt 0:01:57]} Bd6 {[%emt 0:02:17][%cal Ra5b4]} 21. Nd4 {[%emt 0:00:45]} Rbe8 {[%emt 0:00:22]} 22. Qf2 {[%emt 0:00:19]} Be4 $36 {[%emt 0:01:46][%mdl 2048] Black is more active.} (22... Bh3 $5 23. Rfe1 $8 Bg4 $11) 23. Qd2 {[%emt 0:07:56]} (23. Rae1 $11 {keeps the balance.}) 23... Rf6 $17 {[%emt 0:03:28]} 24. Rae1 {[%emt 0:02:22][%cal Oc3c4]} Ref8 {[%emt 0:01:26][%cal Be8f8,Bf8f4,Bf4f3][%mdl 32]} 25. c4 {[%emt 0:00:58]} Qc8 {[%emt 0:07:37][%cal Od6f4] Threatens to win with ...Bxf4!} 26. c5 $2 {[%emt 0:02:32][%mdl 8192] [#] White does not recover from this.} (26. bxa5 $2 {too greedy.} Bxf4 27. Rxf4 Rxf4 $19) (26. f5 $17) 26... Bxf4 $1 $19 {[%emt 0:01:43][%mdl 512]} 27. Rxf4 {[%emt 0:00:31]} Rxf4 {[%emt 0:00:13][%mdl 64] Remove Defender} 28. gxf4 {[%emt 0:00:36]} Qg4+ {[%emt 0:00:05]} 29. Kf2 {[%emt 0:00:34]} Rxf4+ {[%emt 0:02:09]} (29... Qxf4+ $2 30. Qxf4 Rxf4+ 31. Kg3 $18) 30. Ke3 {[%emt 0:00:10]} Qg5 {[%emt 0:00:52]} 31. Nb3 {[%emt 0:07:44]} Rf3+ {[%emt 0:00:58]} 32. Ke2 {[%emt 0:00:27]} Qg2+ {[%emt 0:00:17]} (32... Qg4 $142 33. Kd1 Rxb3+ {[%mdl 64] Discovered Attack} 34. Qe2 Bf3 35. Kc2 Bxe2 36. Kxb3 Bd1+ 37. Rxd1 Qxd1+ 38. Kc3 Qxa4 39. h3 Qd1 40. b5 cxb5 41. c6 d4+ 42. Kb2 d3 43. c7 Qc2+ 44. Ka1 Qxc7 45. h4 Qc2 46. a4 d2 47. axb5 d1=Q#) 33. Kd1 {[%emt 0:00:07]} Rd3 {[%emt 0:01:18][%mdl 64] Pin} 34. Kc1 {[%emt 0:03:59]} Rxd2 {[%emt 0:00:24]} 35. Nxd2 {[%emt 0:00:03]} Qf2 {[%emt 0:00:42]} 36. Rd1 {[%emt 0:00:28]} Bg6 {[%emt 0:00:57]} 37. Kb2 {[%emt 0:00:57]} Qd4+ {[%emt 0:00:30]} 38. Nc3 {[%emt 0:00:20]} axb4 {[%emt 0:00:24]} 39. axb4 {[%emt 0:00:06]} Qf2 {[%emt 0:01:35] Hoping for ...d4.} 40. b5 {[%emt 0:01:44]} Bh5 {[%emt 0:01:00][%mdl 64] Deflection} 41. Rc1 {[%emt 0:00:51]} Qxd2+ {[%emt 0:00:25]} 42. Rc2 {[%emt 0:00:05]} Qd4 {[%emt 0:00:10][%csl LRb5,LRc5]} 43. bxc6 {[%emt 0:00:30]} Qb4+ {[%emt 0:00:19]} 44. Kc1 {[%emt 0:00:09]} Bg6 {[%emt 0:01:52] ( -> ...Qb3)} 45. Nxd5 {[%emt 0:04:08]} Qa3+ {[%emt 0:00:20]} 46. Kd2 {[%emt 0:00:38]} Qd3+ {[%emt 0:00:04]} 47. Ke1 {[%emt 0:00:07]} Qxd5 {[%emt 0:00:05]} 48. c7 {[%emt 0:01:29]} Qe5+ {[%emt 0:00:06]} 49. Kd2 {[%emt 0:00:29]} Qxh2+ {[%emt 0:00:13]} 50. Ke1 {[%emt 0:00:12]} Qxc7 {[%emt 0:00:06]} 51. Rc3 {[%emt 0:00:18]} Qa5 {[%emt 0:00:07]} 52. Kd2 {[%emt 0:00:12]} Be4 {[%emt 0:00:05]} 53. c6 {[%emt 0:00:08]} Bxc6 {[%emt 0:00:04]} 54. Kc2 {[%emt 0:00:10]} h5 {[%emt 0:00:38]} 55. Kb2 {[%emt 0:00:11]} Qb4+ {[%emt 0:00:08]} 56. Rb3 {[%emt 0:00:10]} Qd4+ {[%emt 0:00:12]} 57. Ka3 {[%emt 0:00:08]} Qa1+ {[%emt 0:00:38]} 58. Kb4 {[%emt 0:00:07]} a5+ {[%emt 0:00:12]} 59. Kc5 {[%emt 0:00:14]} Qe5+ {[%emt 0:00:31]} 60. Kxc6 {[%emt 0:00:19] KQ-KR} Qe6+ {[%emt 0:00:18]} 61. Kb5 {[%emt 0:00:24]} Qxb3+ {[%emt 0:00:23]} 62. Kxa5 {[%emt 0:00:27]} h4 {[%emt 0:00:15]} 63. Ka6 {[%emt 0:00:07]} h3 {[%emt 0:00:07]} 64. Ka7 {[%emt 0:00:02]} h2 {[%emt 0:00:07]} 65. Ka6 {[%emt 0:00:04]} h1=Q {[%emt 0:00:10][%cal Rh1a8]} 66. Ka5 {[%emt 0:00:09]} Qa8# {[%emt 0:00:04] Artfully played by Fu.   Weighted Error Value: White=0.93/Black=0.40} 0-1

[Event "Oceania Zonal Open 2023"]
[Site "Melbourne"]
[Date "2023.01.24"]
[Round "2.10"]
[White "Rujevic, Mirko"]
[Black "Chiverton, Fergus"]
[Result "1-0"]
[ECO "C67"]
[WhiteElo "2141"]
[BlackElo "1776"]
[Annotator "TA"]
[PlyCount "85"]
[EventDate "2023.01.09"]
[EventType "swiss"]
[EventCountry "AUS"]
[SourceTitle "playchess.com"]
[Source "ChessBase"]
[SourceQuality "1"]
[TimeControl "5400+30"]

{[%evp 16,85,20,7,23,14,39,3,16,7,6,-25,-7,-20,0,-12,57,0,7,7,6,5,62,76,74,69,70,30,57,57,57,65,71,66,117,114,113,108,114,114,139,120,154,154,151,145,141,131,123,85,209,193,323,297,368,358,448,477,483,480,478,433,468,443,535,487,587,587,591,545,736,725]} 1. e4 {[%emt 0:00:02]} e5 {[%emt 0:00:09]} 2. Nf3 {[%emt 0:00:18]} Nc6 {[%emt 0:00:11]} 3. Bb5 {[%emt 0:00:47]} Nf6 {[%emt 0:00:16]} 4. O-O {[%emt 0:00:38]} Nxe4 {[%emt 0:00:33]} 5. d4 {[%emt 0:00:11]} Nd6 {[%emt 0:00:04]} 6. Bxc6 {[%emt 0:00:10]} dxc6 {[%emt 0:00:04]} 7. dxe5 {[%emt 0:00:10]} Nf5 {[%emt 0:00:05]} 8. Qxd8+ {[%emt 0:00:11]} Kxd8 {[%emt 0:00:07]} 9. h3 {[%emt 0:01:50] Nowadays more popular than 9.Nc3.} h5 {[%emt 0:02:12] C67: Ruy Lopez: Berlin Defence: 4 0-0 Nxe4.} 10. Nc3 {[%emt 0:01:00]} Be6 {[%emt 0:01:16]} 11. b3 {[%emt 0:08:49]} Be7 {[%emt 0:03:41] The position is equal.} 12. Ne4 {[%emt 0:07:07] [#]} Kc8 $146 {[%emt 0:02:52]} ({Predecessor:} 12... b6 13. Rd1+ Kc8 14. Nfg5 Bd5 15. c4 Bxe4 16. Nxe4 a5 17. a4 Rd8 18. Bb2 Kb7 {½-½ Kostal,J (2324)-Kuta,J (2379) CZE-ch SC15 email 2015}) 13. Bb2 {[%emt 0:09:07]} b6 {[%emt 0:01:55]} 14. Rad1 {[%emt 0:05:22]} Kb7 {[%emt 0:01:38]} (14... Bd5 $5 {[%cal Rd5e4]} 15. Rfe1 Kb7 $11) 15. Nfg5 {[%emt 0:08:26]} Rad8 {[%emt 0:07:52]} (15... Bxg5 $11 16. Nxg5 a5) 16. Rfe1 {[%emt 0:09:44]} (16. Rxd8 $14 Rxd8 17. Nxe6 fxe6 18. g4) 16... c5 {[%emt 0:04:59]} 17. Nxe6 {[%emt 0:02:10]} fxe6 {[%emt 0:00:15]} 18. c3 {[%emt 0:14:48]} Rh6 {[%emt 0:08:40]} ({Black should try} 18... a5 $11) 19. Rxd8 $14 {[%emt 0:00:49]} Bxd8 {[%emt 0:00:06]} 20. Rd1 {[%emt 0:00:10]} Be7 {[%emt 0:00:26]} 21. Kf1 {[%emt 0:02:06]} Kc6 {[%emt 0:01:29]} 22. Bc1 {[%emt 0:01:35]} Rh8 {[%emt 0:01:36]} 23. Bg5 {[%emt 0:01:04]} Rf8 {[%emt 0:17:43] [#] ...Bxg5 is the strong threat.} 24. Rd3 {[%emt 0:07:41]} Bxg5 {[%emt 0:10:01]} ({Better is} 24... Rf7 $14) 25. Nxg5 {[%emt 0:00:15][%mdl 4096] Endgame KRN-KRN} Re8 {[%emt 0:00:21]} 26. g3 {[%emt 0:07:03]} Re7 {[%emt 0:02:57]} 27. Ke2 {[%emt 0:01:56]} Nh6 {[%emt 0:03:53]} 28. f4 {[%emt 0:03:21]} c4 {[%emt 0:00:20]} 29. bxc4 {[%emt 0:01:24]} Nf7 {[%emt 0:16:40]} 30. Ne4 {[%emt 0:00:52] White is more active.} Re8 {[%emt 0:00:57]} 31. Rd4 {[%emt 0:02:16]} Rg8 {[%emt 0:02:22]} 32. c5 {[%emt 0:00:36]} bxc5 {[%emt 0:03:04] [#] Black cannot hold the game after this.} (32... b5 $16) 33. Rc4 $1 $18 {[%emt 0:00:42]} Rb8 {[%emt 0:00:36]} (33... g5 $142 34. Rxc5+ Kb7 35. Rb5+ Kc6 36. Rc5+ Kb7 37. Rb5+ Kc6 38. Rc5+) 34. Rxc5+ {[%emt 0:00:10]} ({Weaker is} 34. Nxc5 Kd5 35. Kd3 Rb1 $18) 34... Kd7 {[%emt 0:00:10]} 35. Ra5 {[%emt 0:00:15]} Ra8 {[%emt 0:01:35]} 36. Nc5+ {[%emt 0:00:37] White is clearly winning.} Ke7 {[%emt 0:00:13]} 37. Ra6 {[%emt 0:00:13]} Nd8 {[%emt 0:00:17]} 38. g4 {[%emt 0:00:16]} hxg4 {[%emt 0:00:46]} 39. hxg4 {[%emt 0:00:01]} g6 {[%emt 0:00:44]} 40. Ke3 {[%emt 0:00:35]} c6 {[%emt 0:00:43]} 41. Ra4 {[%emt 0:01:22]} Nf7 {[%emt 0:01:18]} 42. Rb4 {[%emt 0:00:10]} a5 {[%emt 0:02:46]} 43. Rb7+ {[%emt 0:00:07][%mdl 64] Deflection.   Weighted Error Value: White=0.10 (very precise) /Black=0.35} 1-0